bitfinex-derivatives/quotes_ETHF0:USTF0_20260201
["timestamp","ask_amount","ask_price","bid_price","bid_amount"]
[1769979223433,0.33076434,2316.7,2315.0,0.16185819]
[1769979224025,0.22061679,2316.7,2315.0,0.16185819]
[1769979226432,0.3317232,2316.7,2315.0,0.16185819]
[1769979227030,0.11110641,2316.6,2315.0,0.16185819]
[1769979227235,0.11110641,2316.4,2315.0,0.16185819]
[1769979228136,0.33422584,2316.7,2315.0,0.16185819]
[1769979228336,0.11360905,2316.6,2315.0,0.16185819]
[1769979229435,0.11402446,2316.3,2315.0,0.16185819]
[1769979231238,2.66235128,2316.3,2315.0,0.16185819]
[1769979231738,0.11189286,2316.2,2315.0,0.16185819]
[1769979232140,2.66021968,2316.2,2315.0,0.16185819]
[1769979232736,2.54832682,2316.4,2315.0,0.16185819]
[1769979232941,2.66021968,2316.5,2315.0,0.16185819]
[1769979233241,2.54832682,2316.4,2315.2,0.15893575]
[1769979233441,2.54832682,2316.5,2315.2,0.15893575]
[1769979234143,2.54832682,2316.6,2315.2,0.15893575]
[1769979234543,2.54832682,2316.5,2315.2,0.15893575]
[1769979234744,0.00456679,2316.7,2315.2,0.15893575]
[1769979235242,2.55289361,2316.7,2315.3,0.15893575]
[1769979237249,2.54832682,2316.6,2315.3,0.15893575]
[1769979237447,2.55289361,2316.7,2315.3,0.15893575]
[1769979237949,2.54832682,2316.6,2315.3,0.15893575]
[1769979238146,2.65966641,2316.6,2315.3,0.15893575]
[1769979238548,2.65966641,2316.5,2315.3,0.15893575]
[1769979238744,2.54832682,2316.5,2315.3,0.15893575]
[1769979238948,2.54832682,2316.6,2315.3,0.15893575]
[1769979240150,0.00456679,2316.7,2315.7,0.15893575]
[1769979240347,2.54832682,2317.3,2315.9,0.15893575]
[1769979240648,0.11587337,2317.1,2315.9,0.15893575]
[1769979240945,2.54832682,2317.4,2316.1,0.15893575]
[1769979241150,2.54832682,2317.6,2316.1,0.15893575]
[1769979241447,2.54832682,2317.6,2316.7,0.15893575]
[1769979241448,0.00458931,2317.6,2316.7,0.15893575]
[1769979241749,0.11523271,2318.1,2316.6,0.21605]
[1769979241750,2.54832682,2318.2,2316.9,0.15893575]
[1769979241952,38.34013501,2318.4,2317.0,0.15893575]
[1769979241953,2.54832682,2318.4,2317.0,0.15893575]
[1769979242151,2.54832682,2318.5,2317.0,0.15893575]
[1769979242750,0.00427377,2318.5,2317.2,0.15893575]
[1769979242948,0.00427377,2318.5,2317.4,0.15893575]
[1769979243154,0.00427377,2318.5,2317.4,0.16402905]
[1769979243850,0.1255558,2319.0,2317.6,0.15893575]
[1769979244047,6.12188262,2319.2,2317.6,0.15893575]
[1769979244355,0.1255558,2319.1,2317.7,0.15893575]
[1769979244957,0.1255558,2318.9,2317.6,3.888]
[1769979245156,0.1255558,2318.7,2317.6,3.888]
[1769979245352,0.12595666,2318.5,2317.6,3.888]
[1769979247754,5.714,2318.6,2317.7,0.15630504]
[1769979248153,0.1226717,2318.9,2317.7,0.15630504]
[1769979248352,5.8326717,2318.8,2317.7,0.15630504]
[1769979250259,0.00537574,2319.1,2318.0,0.15630504]
[1769979251653,0.12240891,2319.0,2317.6,0.15630504]
[1769979252051,2.96637574,2319.1,2317.6,0.15630504]
[1769979252449,0.00537574,2319.1,2317.6,0.15630504]
[1769979254454,0.12792572,2319.1,2317.6,0.15630504]
[1769979258155,0.00537574,2319.1,2317.6,0.15630504]
[1769979258765,0.00537574,2319.1,2317.7,0.21595]
[1769979258962,0.00537574,2319.1,2317.8,0.15630504]
[1769979261065,0.00537574,2319.1,2317.9,4.04130504]
[1769979261362,0.00537574,2319.1,2318.1,0.15630504]
[1769979262058,2.67569877,2319.9,2318.1,0.15630504]
[1769979262462,2.67569877,2319.9,2318.3,0.15630504]
[1769979262660,0.12737195,2319.9,2318.3,0.15630504]
[1769979263067,0.13087925,2319.9,2318.3,0.15630504]
[1769979263265,0.12737195,2319.7,2318.3,0.15630504]
[1769979265472,0.12408999,2319.6,2318.3,0.15630504]
[1769979265971,0.12408999,2319.4,2318.0,0.15630504]
[1769979266167,2.67241681,2319.4,2318.0,0.15630504]
[1769979266364,0.12408999,2319.3,2318.0,0.15630504]
[1769979266768,2.67241681,2319.2,2318.0,0.15630504]
[1769979266969,0.12408999,2319.1,2318.0,0.15630504]
[1769979267172,0.12408999,2319.0,2318.0,0.15630504]
[1769979268175,2.67241681,2319.0,2318.0,0.15630504]
[1769979269076,2.54832682,2318.9,2318.0,0.15630504]
[1769979270574,2.66875449,2318.6,2317.4,0.16139834]
[1769979271076,2.54832682,2318.5,2317.4,0.16139834]
[1769979271778,5.12536464,2318.7,2317.4,0.16139834]
[1769979271779,2.54832682,2318.2,2317.4,0.16139834]
[1769979271976,0.00333721,2318.2,2317.4,0.16139834]
[1769979272276,2.55166403,2318.2,2317.4,0.16139834]
[1769979272973,0.00333721,2318.2,2317.4,0.16139834]
[1769979273378,2.55166403,2318.2,2317.4,0.16139834]
[1769979273975,0.15627792,2319.0,2317.5,0.15630504]
[1769979274172,0.15627792,2319.0,2317.6,2.71413122]
[1769979274380,0.15627792,2319.0,2317.7,0.15630504]
[1769979274581,0.15627792,2319.3,2317.9,0.15630504]
[1769979274774,0.15627792,2319.3,2318.0,0.15630504]
[1769979274977,0.16004038,2319.3,2318.0,4.04130504]
[1769979275179,0.00376246,2319.3,2318.1,0.15630504]
[1769979275977,0.16004038,2319.3,2318.1,0.15630504]
[1769979276372,0.16004038,2319.3,2318.0,6.44282618]
[1769979276373,0.15627792,2319.2,2318.0,3.885]
[1769979276580,0.15627792,2319.1,2318.0,3.885]
[1769979277181,0.15627792,2318.9,2318.0,3.885]
[1769979277977,0.15133183,2318.6,2317.4,0.0050933]
[1769979278476,38.37623413,2318.3,2317.4,0.0050933]
[1769979278680,0.15133183,2318.2,2317.4,0.0050933]
[1769979280978,0.15133183,2317.8,2316.5,0.15180009]
[1769979281379,0.15133183,2317.7,2316.2,0.15180009]
[1769979281981,0.15133183,2317.7,2316.2,0.15588301]
[1769979282179,0.15133183,2317.6,2316.2,0.15588301]
[1769979282376,0.15619927,2317.6,2316.2,0.00408292]
[1769979283982,0.15133183,2317.5,2316.2,0.00408292]
[1769979286687,0.15133183,2317.5,2315.8,0.21613]
[1769979286688,0.15425098,2316.7,2315.5,0.16590926]
[1769979286988,0.15425098,2316.4,2315.2,0.16590926]
[1769979287587,0.15425098,2316.4,2314.9,2.69790926]
[1769979287881,0.15425098,2316.4,2314.9,2.70320802]
[1769979289883,0.15425098,2316.4,2315.0,0.16590926]
[1769979291485,0.15425098,2315.4,2313.9,2.55782618]
[1769979291685,0.15425098,2315.4,2313.9,0.16590926]
[1769979292483,0.15425098,2315.0,2313.9,0.00484484]
[1769979293792,0.15425098,2314.8,2313.9,0.00484484]
[1769979298294,0.15425098,2314.8,2313.9,0.1707541]
[1769979298989,0.15425098,2315.3,2313.9,0.1707541]
[1769979300295,0.00316874,2315.4,2314.1,0.16590926]
[1769979300696,0.15425098,2316.0,2314.4,0.16590926]
[1769979300890,0.15425098,2316.0,2314.5,0.16590926]
[1769979301089,0.15425098,2316.4,2314.6,0.16590926]
[1769979301291,0.15425098,2316.4,2314.8,0.16590926]
[1769979301594,0.15425098,2316.8,2315.5,0.16590926]
[1769979301888,0.15425098,2317.1,2315.7,0.16590926]
[1769979302093,0.15425098,2317.4,2315.7,0.16590926]
[1769979302295,0.15425098,2317.4,2316.0,0.16590926]
[1769979302494,0.15425098,2317.7,2316.0,0.16590926]
[1769979302688,0.15874125,2317.7,2316.0,0.16965924]
[1769979302886,0.37470125,2317.7,2316.0,0.00374998]
[1769979303189,0.15425098,2317.6,2316.0,0.00374998]
[1769979304498,0.15425098,2317.1,2315.6,3.89]
[1769979304789,0.15425098,2317.0,2315.6,3.89]
[1769979305487,0.15425098,2317.0,2315.6,3.89468902]
[1769979306193,0.15425098,2317.0,2315.7,0.16590926]
[1769979307489,0.15425098,2317.0,2315.8,0.16590926]
[1769979307693,0.1592183,2317.6,2315.8,0.16590926]
[1769979308294,0.1592183,2317.4,2315.6,3.89468902]
[1769979308598,0.1592183,2317.2,2315.6,3.89468902]
[1769979309392,0.1592183,2317.2,2315.7,0.15224485]
[1769979313199,0.1592183,2317.1,2315.7,0.15224485]
[1769979313994,5.12536464,2317.6,2315.6,3.89468902]
[1769979313995,0.3752383,2317.0,2315.6,3.89468902]
[1769979314296,0.1592183,2316.9,2315.6,3.89468902]
[1769979316000,0.1592183,2316.6,2315.6,3.89468902]
[1769979317501,0.1592183,2316.6,2315.6,4.04693387]
[1769979317697,0.1592183,2316.6,2315.7,0.15224485]
[1769979317898,0.1592183,2317.1,2315.7,0.15224485]
[1769979319092,0.1592183,2317.4,2315.7,0.15224485]
[1769979320302,0.1592183,2317.4,2315.8,0.15224485]
[1769979322305,0.1592183,2317.4,2315.9,0.15224485]
[1769979326801,0.1592183,2317.3,2315.6,4.04693387]
[1769979326996,0.1592183,2317.0,2315.6,4.04693387]
[1769979327196,0.1592183,2316.7,2315.6,4.04693387]
[1769979327398,0.1592183,2316.7,2315.6,3.89468902]
[1769979327906,0.1592183,2316.7,2315.7,0.15224485]
[1769979331910,38.2249023,2316.9,2315.8,0.15224485]
[1769979332106,0.1592183,2317.0,2315.9,2.71228463]
[1769979333113,0.1592183,2317.0,2315.9,0.15224485]
[1769979333305,38.2249023,2317.1,2316.0,0.15224485]
[1769979333613,0.1592183,2316.6,2315.6,0.15693387]
[1769979334010,2.72742298,2316.6,2315.6,0.15693387]
[1769979334606,0.1592183,2316.5,2315.6,0.15693387]
[1769979336605,2.56820468,2316.6,2315.6,0.15693387]
[1769979336911,2.56820468,2316.9,2315.8,0.15224485]
[1769979337213,2.72742298,2317.0,2315.9,0.15224485]
[1769979337513,0.1639092,2316.9,2315.9,0.15224485]
[1769979337911,2.56820468,2317.0,2316.0,0.15078022]
[1769979338111,2.73211388,2317.0,2316.0,0.15078022]
[1769979338411,38.2249023,2317.1,2316.0,0.15078022]
[1769979338412,2.56820468,2317.1,2316.0,0.15078022]
[1769979339212,2.56820468,2317.1,2316.1,0.15078022]
[1769979339410,2.56018523,2317.1,2316.1,0.15078022]
[1769979340516,2.72409443,2317.2,2316.1,0.15078022]
[1769979342118,0.1639092,2317.2,2316.1,2.73358337]
[1769979342317,0.1639092,2317.2,2316.2,0.15078022]
[1769979343620,0.1639092,2317.0,2316.0,3.888]
[1769979343821,0.1639092,2317.0,2316.0,4.03878022]
[1769979346122,0.16286067,2316.9,2316.0,3.888]
[1769979347825,2.7230459,2317.2,2316.1,0.15023702]
[1769979348224,0.16286067,2317.1,2316.1,0.15023702]
[1769979348425,0.16286067,2317.0,2316.1,0.15023702]
[1769979350128,2.56018523,2317.2,2316.2,0.15023702]
[1769979350324,2.7230459,2317.2,2316.2,0.15023702]
[1769979350723,0.16286067,2317.1,2316.2,0.15023702]
[1769979351625,2.56018523,2317.3,2316.3,0.15023702]
[1769979352528,0.16286067,2317.2,2316.3,0.15023702]
[1769979354127,2.56018523,2317.3,2316.3,0.15023702]
[1769979354328,2.56018523,2317.4,2316.3,0.15023702]
[1769979354531,2.56018523,2317.4,2316.4,0.15023702]
[1769979355431,0.16286067,2317.3,2316.4,0.15023702]
[1769979356232,2.56018523,2317.5,2316.4,0.15023702]
[1769979356423,2.7230459,2317.5,2316.5,0.15023702]
[1769979356630,2.7230459,2317.5,2316.6,2.68323702]
[1769979357127,0.16286067,2317.5,2316.6,2.68323702]
[1769979357733,0.16286067,2317.5,2316.7,0.15023702]
[1769979358527,2.56018523,2317.6,2316.7,0.15023702]
[1769979358728,2.7230459,2317.6,2316.7,0.15023702]
[1769979360125,2.5646755,2317.7,2316.8,0.15023702]
[1769979360329,5.12536464,2318.3,2317.2,0.15023702]
[1769979360527,0.16286067,2318.4,2317.4,0.15023702]
[1769979360830,0.16286067,2318.2,2317.3,2.533]
[1769979361329,0.16286067,2318.1,2317.3,2.53655854]
[1769979361824,0.00456642,2318.2,2317.4,0.15023702]
[1769979362024,0.16742709,2318.2,2317.3,2.53655854]
[1769979362425,0.16742709,2318.2,2317.3,2.68679556]
[1769979364124,0.00456642,2318.2,2317.4,0.15023702]
[1769979364523,2.56018523,2318.9,2317.4,0.15023702]
[1769979364829,0.16286067,2318.8,2317.5,0.15023702]
[1769979365230,0.16286067,2318.8,2317.6,0.15023702]
[1769979365430,0.16627742,2318.8,2317.8,0.15023702]
[1769979365625,0.00341675,2318.8,2317.8,0.15023702]
[1769979365930,0.16627742,2318.8,2317.8,0.15023702]
[1769979366135,0.00341675,2318.8,2317.8,0.15023702]
[1769979367038,0.00341675,2318.8,2317.9,0.15023702]
[1769979367228,0.16627742,2318.8,2317.4,2.73304017]
[1769979367428,2.71572628,2318.5,2317.3,0.00355854]
[1769979367836,0.15554105,2318.3,2317.3,0.00355854]
[1769979372645,2.56018523,2318.6,2317.4,0.15747665]
[1769979372839,0.15554105,2318.5,2317.3,0.00355854]
[1769979373046,0.15554105,2318.4,2317.3,0.00355854]
[1769979373247,0.15554105,2318.4,2317.3,0.16103519]
[1769979374742,0.15554105,2318.7,2317.4,0.15747665]
[1769979374948,0.15554105,2318.7,2317.6,0.15747665]
[1769979375148,0.15554105,2318.7,2317.3,0.00355854]
[1769979375648,0.15554105,2318.6,2317.3,0.00355854]
[1769979376046,0.15554105,2318.6,2317.3,0.16103519]
[1769979377150,0.15554105,2318.5,2317.3,0.16103519]
[1769979377947,2.71572628,2318.5,2317.3,0.00355854]
[1769979378151,0.15554105,2318.2,2317.3,0.00355854]
[1769979378846,0.15554105,2318.2,2317.3,0.16103519]
[1769979380153,2.71572628,2318.5,2317.4,0.15747665]
[1769979380352,0.15554105,2318.5,2317.4,0.15747665]
[1769979382149,2.71914303,2318.8,2317.5,0.15747665]
[1769979382650,0.15554105,2318.7,2317.5,0.15747665]
[1769979383243,0.15554105,2318.7,2317.6,0.15747665]
[1769979384150,0.15554105,2318.7,2317.7,0.15747665]
[1769979384352,0.15554105,2318.7,2317.9,0.15747665]
[1769979384548,0.1589578,2318.8,2317.9,0.15747665]
[1769979385452,0.00341675,2318.8,2317.9,0.15747665]
[1769979385644,0.1589578,2318.8,2317.9,0.15747665]
[1769979386854,0.1589578,2318.8,2317.8,2.532]
[1769979387053,0.1589578,2318.8,2317.8,2.68947665]
[1769979387854,0.1589578,2318.8,2317.9,0.15747665]
[1769979388052,0.1589578,2318.8,2317.8,2.532]
[1769979388258,0.15554105,2318.4,2317.7,3.886]
[1769979388549,0.15554105,2318.4,2317.3,0.16103519]
[1769979388550,0.15554105,2318.2,2317.3,0.00355854]
[1769979389147,2.71572628,2318.2,2317.3,0.00355854]
[1769979389346,0.15554105,2318.1,2317.3,0.00355854]
[1769979390550,0.15554105,2318.1,2317.3,0.16103519]
[1769979395458,0.15554105,2318.1,2317.3,2.74383834]
[1769979397154,2.56018523,2318.6,2317.5,0.15747665]
[1769979397455,0.16215997,2318.5,2317.6,0.15747665]
[1769979397661,2.7223452,2318.5,2317.4,2.58280315]
[1769979397953,2.7223452,2318.5,2317.3,4.07576298]
[1769979397954,0.16215997,2318.4,2317.3,2.96348187]
[1769979398158,0.16215997,2318.4,2317.4,0.16113018]
[1769979399560,0.16215997,2318.4,2317.5,0.16113018]
[1769979400361,0.16215997,2318.4,2317.6,0.16113018]
[1769979400758,0.16215997,2318.4,2317.4,2.58280315]
[1769979400962,0.16215997,2318.4,2317.5,0.16113018]
[1769979403663,0.16215997,2318.4,2317.4,2.58280315]
[1769979403863,0.16215997,2318.4,2317.3,4.07576298]
[1769979403864,0.16215997,2318.2,2317.3,0.00355854]
[1769979409171,0.16215997,2318.2,2317.3,0.16268599]
[1769979409772,2.72129695,2318.4,2317.5,0.15912745]
[1769979409973,0.16111172,2318.2,2317.3,0.00355854]
[1769979411673,0.16111172,2318.2,2317.3,0.16268599]
[1769979412875,0.16111172,2318.2,2317.3,0.00355854]
[1769979413870,0.16111172,2317.7,2317.0,3.885]
[1769979414676,2.56018523,2317.6,2317.0,3.22629783]
[1769979414875,2.56018523,2317.6,2317.0,3.23166857]
[1769979416173,2.56018523,2317.5,2317.0,3.23166857]
[1769979418477,2.56018523,2317.5,2317.0,3.3980349]
[1769979418677,2.56018523,2317.5,2317.0,3.23166857]
[1769979419477,2.56018523,2317.6,2317.0,3.23166857]
[1769979420573,2.51190201,2317.6,2317.1,0.16837406]
[1769979420774,7.65725115,2318.3,2317.1,0.16837406]
[1769979420775,38.2249023,2318.3,2317.1,0.16837406]
[1769979421480,0.1579263,2318.4,2317.3,0.15912745]
[1769979421782,0.1579263,2318.3,2317.3,0.15912745]
[1769979423886,38.2249023,2318.5,2317.5,0.15912745]
[1769979424079,38.2249023,2318.6,2317.5,0.15912745]
[1769979424280,38.22831905,2318.8,2317.5,0.15912745]
[1769979424780,38.22831905,2318.8,2317.6,0.15912745]
[1769979425584,0.1566477,2318.7,2317.4,5.11480315]
[1769979425786,0.1566477,2318.4,2317.4,2.69112745]
[1769979426185,0.1566477,2318.3,2317.4,2.69112745]
[1769979426783,38.38155,2318.3,2317.4,2.69112745]
[1769979426983,0.1566477,2318.0,2317.1,0.15912745]
[1769979434998,0.1566477,2318.0,2317.0,5.76366857]
[1769979435203,0.1568839,2317.8,2317.0,5.76366857]
[1769979435894,0.1568839,2317.8,2317.0,3.23166857]
[1769979436095,0.15795401,2317.7,2317.0,3.23166857]
[1769979436301,0.15795401,2317.7,2317.0,3.39292717]
[1769979437804,0.15587218,2317.6,2317.0,0.00537074]
[1769979438004,0.15587218,2317.6,2316.7,0.1612586]
[1769979438909,0.15587218,2317.6,2316.7,0.16445861]
[1769979439608,0.15587218,2317.6,2316.7,0.00320001]
[1769979439907,0.14874684,2317.5,2316.7,0.00320001]
[1769979440912,0.14874684,2317.3,2316.2,0.1612586]
[1769979441913,0.14874684,2317.3,2316.2,0.16552828]
[1769979443808,0.14874684,2317.3,2316.2,0.00426968]
[1769979444415,0.14874684,2317.3,2316.2,0.16552828]
[1769979444609,0.14844184,2317.2,2316.2,0.16552828]
[1769979444815,0.14844184,2317.2,2316.2,0.00426968]
[1769979445113,0.14844184,2317.1,2316.2,0.00426968]
[1769979445310,0.00350004,2317.1,2316.2,0.00426968]
[1769979445512,0.14423646,2316.8,2315.6,0.1612586]
[1769979445707,0.14423646,2316.7,2315.6,0.1612586]
[1769979445913,0.14423646,2316.6,2315.6,0.1612586]
[1769979446511,0.14423646,2316.5,2315.6,0.1612586]
[1769979446820,0.14423646,2316.2,2315.3,0.1612586]
[1769979447921,0.14423646,2316.2,2315.1,0.1612586]
[1769979448319,0.14494578,2316.5,2315.1,0.1612586]
[1769979448621,0.14494578,2316.5,2315.1,0.16599065]
[1769979449119,0.14494578,2316.6,2315.1,0.16599065]
[1769979449316,0.14776557,2316.5,2315.1,0.16599065]
[1769979449521,0.14776557,2316.4,2315.1,0.16599065]
[1769979451522,38.50814249,2316.8,2315.1,0.16599065]
[1769979451523,0.15224014,2316.7,2315.1,0.16599065]
[1769979451917,0.36829014,2316.7,2315.1,0.16599065]
[1769979452122,0.15224014,2316.5,2315.1,0.16599065]
[1769979452523,0.15224014,2316.4,2315.1,0.16599065]
[1769979454019,0.15289064,2316.0,2315.1,1e-08]
[1769979454220,0.15289064,2316.0,2314.9,0.1612586]
[1769979454421,0.15289064,2316.2,2314.9,0.1612586]
[1769979455124,0.15289064,2316.2,2314.9,0.16450002]
[1769979457326,0.15745131,2316.1,2314.9,0.16450002]
[1769979467334,0.15355564,2316.0,2314.9,0.16450002]
[1769979469237,38.66169813,2316.0,2314.9,0.16450002]
[1769979471438,0.15355564,2315.9,2314.9,0.16450002]
[1769979472139,38.66169813,2315.9,2314.9,0.16450002]
[1769979472836,38.50814249,2316.0,2314.9,0.16450002]
[1769979473039,38.50814249,2316.4,2315.0,0.15302443]
[1769979473236,38.50814249,2316.5,2315.2,0.15302443]
[1769979473440,38.50814249,2316.5,2315.4,0.15302443]
[1769979473943,38.50814249,2316.6,2315.4,0.15302443]
[1769979474340,0.15355564,2316.5,2315.4,0.15302443]
[1769979474536,38.66169813,2316.5,2315.4,0.15302443]
[1769979477342,0.15355564,2316.4,2315.4,0.15302443]
[1769979477545,0.15355564,2316.2,2315.3,2.68802443]
[1769979477743,0.15355564,2316.1,2315.3,2.68802443]
[1769979478449,38.50814249,2316.2,2315.4,0.15302443]
[1769979478747,38.66169813,2316.2,2315.4,0.15302443]
[1769979480238,5.13441899,2316.3,2314.9,0.15626585]
[1769979480239,0.15355564,2315.9,2314.9,0.15626585]
[1769979480444,0.15355564,2315.6,2314.9,0.00324142]
[1769979480645,2.72537048,2315.6,2314.9,0.00324142]
[1769979480841,0.15355564,2315.2,2314.5,0.15302443]
[1769979481045,2.57181484,2315.0,2314.5,0.15302443]
[1769979481743,2.57181484,2315.0,2314.4,2.535]
[1769979481940,2.57181484,2315.0,2314.4,2.69341453]
[1769979481941,2.57643844,2315.0,2314.4,2.69341453]
[1769979483250,0.15817924,2315.0,2314.4,2.5403901]
[1769979483452,2.72999408,2315.0,2314.4,2.5403901]
[1769979484050,0.15817924,2315.0,2314.4,2.5403901]
[1769979485446,0.15355564,2314.9,2314.2,0.15302443]
[1769979485652,0.15355564,2314.9,2313.9,0.15302443]
[1769979486352,2.57181484,2314.6,2313.6,0.15302443]
[1769979486551,0.15355564,2314.5,2313.6,0.15654605]
[1769979487451,0.15355564,2314.5,2313.6,0.00352162]
[1769979487645,2.57181484,2314.6,2313.7,0.15006785]
[1769979487851,0.15602855,2315.0,2313.7,0.15006785]
[1769979487852,0.0046236,2315.0,2313.7,0.15006785]
[1769979488047,0.0046236,2315.0,2313.8,0.15006785]
[1769979488253,0.0046236,2315.0,2314.0,0.15006785]
[1769979488954,2.57181484,2315.6,2314.1,0.15006785]
[1769979489154,0.15140495,2315.7,2314.3,0.15006785]
[1769979489949,0.15626135,2315.7,2314.3,0.15006785]
[1769979490352,0.0048564,2315.7,2314.3,0.15006785]
[1769979496961,0.0048564,2315.7,2314.5,0.15006785]
[1769979497168,0.0048564,2315.7,2314.7,0.15006785]
[1769979497367,0.0048564,2315.7,2314.9,0.15006785]
[1769979498265,0.0048564,2315.7,2314.9,4.04006785]
[1769979498464,0.0048564,2315.7,2315.0,0.15006785]
[1769979499563,0.15626135,2315.7,2315.0,0.15006785]
[1769979499762,0.15626135,2315.7,2314.9,4.04006785]
[1769979500659,0.15626135,2315.7,2314.7,0.15006785]
[1769979501469,0.15140495,2315.6,2314.7,0.15006785]
[1769979503272,2.57667124,2315.7,2314.7,0.15006785]
[1769979503273,0.0048564,2315.7,2314.7,0.15006785]
[1769979507073,2.57667124,2315.7,2314.7,0.15006785]
[1769979509975,2.72807619,2315.7,2314.7,0.15006785]
[1769979510281,0.15140495,2315.5,2314.7,0.15006785]
[1769979512478,2.72321979,2315.5,2314.7,0.15006785]
[1769979517380,2.57181484,2315.4,2314.7,0.15006785]
[1769979518184,2.57181484,2315.3,2314.7,0.15006785]
[1769979518483,2.07181484,2315.3,2314.7,0.15006785]
[1769979518781,38.73071304,2315.5,2314.7,0.15006785]
[1769979519679,38.57930809,2315.4,2314.7,0.15006785]
[1769979524486,0.1649092,2315.3,2314.7,0.15006785]
[1769979532087,38.57930809,2315.5,2314.8,0.159021]
[1769979532592,38.57930809,2315.5,2314.9,2.535]
[1769979532792,38.72963299,2315.5,2314.9,2.535]
[1769979533794,38.72963299,2315.5,2314.9,2.694021]
[1769979533993,0.1503249,2315.5,2314.9,2.694021]
[1769979536093,38.72963299,2315.5,2314.9,2.694021]
[1769979538093,38.57930809,2315.5,2315.0,0.159021]
[1769979538393,38.57930809,2315.6,2315.0,0.159021]
[1769979538586,0.1503249,2315.6,2314.5,2.58516712]
[1769979538786,0.1503249,2315.6,2314.6,3.86007611]
[1769979538991,0.1503249,2315.6,2314.5,2.58516712]
[1769979539395,0.1503249,2315.6,2314.5,2.75163899]
[1769979539590,0.15521953,2315.6,2314.5,2.75163899]
[1769979540596,0.15521953,2315.6,2314.5,2.58516712]
[1769979541298,0.15521953,2315.6,2314.6,0.16647187]
[1769979548402,0.15521953,2315.6,2314.7,0.16768131]
[1769979551702,0.15521953,2315.6,2314.8,0.16869659]
[1769979553602,0.21611,2316.0,2315.3,0.16940754]
[1769979554101,6.42988468,2316.3,2315.3,0.16940754]
[1769979554603,0.00338135,2316.3,2315.3,0.17380228]
[1769979555401,0.00338135,2316.3,2315.5,0.17392132]
[1769979555802,0.00338135,2316.3,2315.7,0.17392132]
[1769979556403,6.42988468,2316.8,2315.7,0.17392132]
[1769979556597,6.42988468,2316.9,2315.7,0.17392132]
[1769979557001,0.21602,2317.0,2315.7,0.17392132]
[1769979557301,0.21602,2317.0,2315.8,0.17392132]
[1769979557501,0.22072216,2317.0,2315.8,0.17392132]
[1769979558102,6.42988468,2316.9,2315.6,0.17428443]
[1769979558404,6.64593468,2316.7,2315.5,0.17428443]
[1769979558598,0.21605,2316.7,2315.5,0.17428443]
[1769979562205,6.43458684,2317.0,2315.5,0.17428443]
[1769979562410,0.00470216,2317.0,2315.6,0.17492559]
[1769979562612,0.00470216,2317.0,2315.7,0.17492559]
[1769979573317,0.00470216,2317.0,2316.1,0.17863868]
[1769979573517,0.00470216,2317.0,2316.3,0.17921066]
[1769979574917,0.21596,2317.6,2316.3,0.17921066]
[1769979575912,0.21970105,2317.6,2316.3,0.17921066]
[1769979577521,0.00374105,2317.6,2316.3,0.17921066]
[1769979578318,2.534,2318.5,2316.5,0.18106047]
[1769979579221,0.21589,2318.4,2316.5,0.18106047]
[1769979579420,0.22043141,2318.4,2316.5,0.18106047]
[1769979579724,0.22043141,2318.4,2316.8,0.18174821]
[1769979580829,0.21592,2318.1,2316.8,0.18174821]
[1769979581025,0.21594,2317.9,2316.8,0.18174821]
[1769979587036,0.21594,2317.8,2316.8,0.18174821]
[1769979588736,0.21595,2317.7,2316.8,0.18174821]
[1769979589433,3.888,2318.1,2316.8,0.18174821]
[1769979589635,3.888,2318.1,2316.4,6.63980237]
[1769979589636,0.21602,2317.0,2316.4,0.18330507]
[1769979591143,0.17824214,2317.0,2316.4,0.18330507]
[1769979592239,0.21597,2317.6,2316.4,0.18330507]
[1769979600646,0.21599,2317.4,2316.4,0.18330507]
[1769979600848,0.216,2317.2,2316.4,0.18330507]
[1769979601248,0.21602,2317.0,2316.1,0.1850706]
[1769979602949,6.42988468,2317.4,2316.1,0.1850706]
[1769979603144,6.42988468,2317.5,2316.1,0.1850706]
[1769979603348,6.42988468,2317.6,2316.3,0.18512847]
[1769979603544,6.42988468,2317.9,2316.6,0.18512847]
[1769979603744,0.21593,2318.0,2316.8,0.18512847]
[1769979604045,14.08713583,2318.1,2316.7,6.64675465]
[1769979604046,6.42988468,2318.7,2317.3,2.77029559]
[1769979604250,0.21587,2318.6,2317.4,0.18512847]
[1769979604452,6.43442609,2318.4,2317.3,0.0048986]
[1769979604849,6.43442609,2318.4,2317.3,0.19002707]
[1769979605051,6.43442609,2318.4,2317.3,0.0048986]
[1769979605052,0.21594,2317.9,2317.3,0.0048986]
[1769979605251,0.21594,2317.9,2317.0,0.18512847]
[1769979606248,0.21594,2317.9,2317.0,0.18939911]
[1769979606852,12.67088468,2318.3,2317.0,0.18939911]
[1769979607452,6.43442609,2318.4,2317.0,0.18939911]
[1769979607755,0.00454141,2318.4,2317.0,0.18939911]
[1769979607950,6.65031609,2318.4,2317.0,0.18939911]
[1769979608255,6.42988468,2318.2,2317.0,0.18939911]
[1769979608952,0.2159,2318.3,2317.1,0.18412032]
[1769979609159,0.00454141,2318.4,2317.1,0.18412032]
[1769979610853,0.21592,2318.1,2317.0,0.00427064]
[1769979611059,0.21592,2318.1,2317.0,0.18723374]
[1769979611351,0.21594,2317.9,2317.0,0.00427064]
[1769979611757,0.21595,2317.8,2317.0,0.00427064]
[1769979613055,0.21595,2317.7,2317.0,0.00427064]
[1769979614161,0.21597,2317.5,2317.0,0.00427064]
[1769979616156,0.21597,2317.5,2317.0,0.18823757]
[1769979616352,0.21107139,2317.5,2317.0,0.18823757]
[1769979618057,0.00454141,2318.4,2317.1,0.18385881]
[1769979618765,0.00454141,2318.4,2317.2,0.18385881]
[1769979619057,0.00454141,2318.4,2317.3,0.18385881]
[1769979620062,0.00454141,2318.4,2317.4,0.18411404]
[1769979624469,0.43185,2318.1,2317.4,0.18411404]
[1769979624865,0.00454141,2318.4,2317.4,0.18411404]
[1769979625364,0.22047141,2318.4,2317.4,0.18411404]
[1769979625867,0.00454141,2318.4,2317.4,0.18411404]
[1769979626063,0.21593,2318.1,2317.4,0.18411404]
[1769979626569,0.21593,2317.9,2317.4,0.18411404]
[1769979626871,0.21593,2318.1,2317.4,0.18411404]
[1769979627372,0.21593,2317.9,2317.4,0.18411404]
[1769979627566,0.22043141,2318.4,2317.4,0.18411404]
[1769979627567,0.21593,2318.1,2317.4,0.18411404]
[1769979627972,0.21593,2317.9,2317.4,0.18411404]
[1769979628172,0.21593,2318.1,2317.4,0.18411404]
[1769979628374,0.00454141,2318.4,2317.4,0.18411404]
[1769979630471,0.00454141,2318.4,2317.6,0.18500721]
[1769979631674,0.21584,2318.9,2317.6,0.18500721]
[1769979632168,0.21584,2318.9,2317.7,0.18229299]
[1769979632675,0.21989797,2318.9,2317.7,0.18229299]
[1769979632973,0.21989797,2318.9,2317.7,4.23069223]
[1769979633175,0.21989797,2318.9,2317.8,0.18229299]
[1769979633775,0.43582797,2318.9,2317.8,0.18229299]
[1769979634175,0.21989797,2318.9,2317.8,0.18229299]
[1769979634472,0.43582797,2318.9,2317.8,0.18229299]
[1769979634772,0.00405797,2318.9,2317.8,0.18229299]